Cogmind - Beta 17 @@@ ROGUE MODE // 2026.08.04 @ 04:20:35 Player: cxt100s Result: Escaped! Performance ------------- Evolutions (9) 4500 Regions Visited (18) 3600 Robots Destroyed (254) 1270 Value Destroyed (10322) 10322 Prototype IDs (31) 620 Alien Tech Used (3) 600 Bonus (17608) 17608 TOTAL SCORE: 38520 Bonus ------- High Alert Combat Kills 4961 Follower Combat Kills 110 Hunted by Unchained 500 Registered with UFD 300 Met Optimus in HQ 500 Met Optimus at Protoforge 1000 Executed Drillbomb Mission 10000 Win 3000 Friendly Fire -2763 Cogmind --------- Core Integrity 968/1600 Matter 262/300 Energy 80/100 System Corruption 1% Temperature Cool (11) Movement Flying (42) Location To Epsilon Eridani Parts ------- > --- POWER (2) -------- (None) > --- PROPULSION (9) --- Impulse Thruster Array Impulse Thruster Array > --- UTILITY (12) ----- Large Storage Unit Experimental Optical Array Advanced Transmission Jammer Hacking Suite Improved Hacking Suite Advanced Hacking Suite Advanced Hacking Suite Experimental Hacking Suite System Shield > --- WEAPON (2) ------- Plasma Lance > --- INVENTORY (15) --- Micro Antimatter Reactor Xenon Bombardment Thruster Impulse Thruster Array Advanced Signal Interpreter Experimental Reaction Control System Makeshift Propulsion Shielding Centrium Light Armor Plating Centrium Light Armor Plating Centrium Light Armor Plating Plasma Lance Peak State ------------ > --- POWER ------------ Micro Antimatter Reactor Micro Antimatter Reactor > --- PROPULSION ------- Impulse Thruster Array Impulse Thruster Array Impulse Thruster Array Impulse Thruster Array Experimental Surge Thruster > --- UTILITY ---------- High-capacity Storage Unit Experimental Optical Array Experimental Sensor Array Advanced Signal Interpreter Experimental Reaction Control System Makeshift Propulsion Shielding Centrium Light Armor Plating Centrium Light Armor Plating Hacking Suite Improved Hacking Suite Advanced Hacking Suite Experimental Hacking Suite > --- WEAPON ----------- Plasma Lance Plasma Lance > --- INVENTORY -------- Micro Antimatter Reactor Micro Antimatter Reactor Xenon Bombardment Thruster Impulse Thruster Array Impulse Thruster Array Experimental Surge Thruster Large Storage Unit Advanced Signal Interpreter ECM Suite Experimental Reaction Control System Centrium Light Armor Plating Centrium Light Armor Plating Advanced Hacking Suite System Shield [Rating: 193] Favorites ----------- Power Micro Antimatter Reactor Engine Reinforced Ion Engine Power Core Micro Fission Core Reactor Micro Antimatter Reactor Propulsion Impulse Thruster Array Treads Light Treads Leg Aluminum Leg Wheel Wheel Flight Unit Impulse Thruster Array Utility Hacking Suite Device Seismic Detector Storage Huge Storage Unit Processor Advanced Signal Interpreter Hackware Hacking Suite Protection Centrium Light Armor Plating Weapon Helical Railgun Energy Gun Medium Laser Ballistic Gun Helical Railgun Launcher Grenade Launcher Special Weapon Mining Laser Impact Weapon Heavy Mace Slashing Weapon Vibroblade Piercing Weapon Lance Special Melee Weapon Improved Datajack Build | -11 -10 -9 -9 -8 -7 -7 -7 -7 -5 -4 -4 -4 -3 -2 -2 -2 -1 -1 ------- Run | Yrd Mat Mat Min Mat Fac Sto Rec Scr Fac Fac Was Fac Res Res Qua Frg Acc Com Slots Evolved 18 | . . 2 . 2 2 . . . 4 2 . . 2 2 . . 2 . Power 1 | . . . . . . . . . . . . . 1 . . . . . Propulsion 7 | . . 1 . 1 1 . . . 1 1 . . . 2 . . . . Utility 10 | . . 1 . 1 1 . . . 3 1 . . 1 . . . 2 . Weapon . | . . . . . . . . . . . . . . . . . . . Parts Attached 261 | 4 9 28 1 32 10 . . 1 15 7 . 10 6 7 5 118 4 4 Power 27 | . 1 3 1 . 1 . . . . 1 . 2 1 . 1 15 . 1 Engine 7 | . 1 3 1 . 1 . . . . 1 . . . . . . . . Core 3 | . . . . . . . . . . . . 2 1 . . . . . Reactor 17 | . . . . . . . . . . . . . . . 1 15 . 1 Propulsion 81 | 2 2 13 . 15 4 . . . 5 . . 2 3 3 . 31 . 1 Treads 29 | 2 1 13 . 13 . . . . . . . . . . . . . . Leg . | . . . . . . . . . . . . . . . . . . . Wheel 1 | . 1 . . . . . . . . . . . . . . . . . Hover . | . . . . . . . . . . . . . . . . . . . Flight 51 | . . . . 2 4 . . . 5 . . 2 3 3 . 31 . 1 Utility 104 | 1 3 5 . 7 3 . . 1 7 5 . 6 2 4 3 51 4 2 Device 31 | 1 1 . . 1 1 . . . 2 . . 2 1 . . 19 1 2 Storage 6 | . 2 . . . 1 . . 1 1 . . . . . 1 . . . Processor 6 | . . 1 . . 1 . . . . 1 . 1 1 . . 1 . . Hackware 16 | . . . . 3 . . . . 1 3 . 2 . 3 . 1 3 . Protection 45 | . . 4 . 3 . . . . 3 1 . 1 . 1 2 30 . . Artifact . | . . . . . . . . . . . . . . . . . . . Weapon 49 | 1 3 7 . 10 2 . . . 3 1 . . . . 1 21 . . Energy Gun 2 | 1 1 . . . . . . . . . . . . . . . . . Energy Cannon . | . . . . . . . . . . . . . . . . . . . Ballistic Gun 31 | . 1 6 . 8 . . . . . . . . . . . 16 . . Ballistic Cannon . | . . . . . . . . . . . . . . . . . . . Launcher 2 | . . 1 . 1 . . . . . . . . . . . . . . Special Weapon 1 | . 1 . . . . . . . . . . . . . . . . . Impact Weapon 2 | . . . . 1 1 . . . . . . . . . . . . . Slashing Weapon 4 | . . . . . 1 . . . 1 1 . . . . 1 . . . Piercing Weapon 6 | . . . . . . . . . 1 . . . . . . 5 . . Special Melee Weapon 1 | . . . . . . . . . 1 . . . . . . . . . Unidentified Prototypes 28 | . . 1 . 4 . . . . 1 2 . . 1 . 2 17 . . Parts Lost 44 | . . 5 . 2 . . . . 1 . . 8 . . . 16 . 12 Power 6 | . . . . . . . . . . . . 1 . . . 1 . 4 Propulsion 17 | . . 4 . . . . . . 1 . . 3 . . . 4 . 5 Utility 19 | . . . . 2 . . . . . . . 4 . . . 10 . 3 Weapon 2 | . . 1 . . . . . . . . . . . . . 1 . . Highest Loss Streak 12 | . . 2 . 1 . . . . 1 . . 3 . . . 6 . 12 To Critical Strikes . | . . . . . . . . . . . . . . . . . . . Average Backups 17 | 4 18 24 25 24 13 10 10 10 11 14 15 13 13 13 17 10 13 12 Power 1 | 1 1 . . 1 1 1 1 1 1 1 2 1 2 3 3 . 2 2 Propulsion 5 | 1 4 10 12 9 3 2 2 2 3 3 3 3 3 2 2 2 4 3 Utility 6 | . 6 4 4 5 5 5 5 5 5 8 9 7 6 7 9 6 7 6 Weapon 3 | 1 5 8 8 6 1 1 1 1 1 1 1 1 1 1 1 1 . . Tool/Special . | . . . . . . . . . . . . . . . . . . . Unused Backups 85 | 8 5 17 1 16 5 1 . . 3 6 . 4 4 1 1 8 . 5 Power 12 | 1 1 1 . 2 . 1 . . . . . 1 2 . . 2 . 1 Propulsion 28 | 5 . 2 . 6 2 . . . 1 . . 3 2 . . 5 . 2 Utility 20 | 1 3 4 1 1 . . . . 1 5 . . . 1 1 . . 2 Weapon 23 | 1 1 10 . 6 3 . . . 1 . . . . . . 1 . . Tool/Special 2 | . . . . 1 . . . . . 1 . . . . . . . . Average Slot Usage (%) 92 | . 99 99 100 99 96 100 100 100 89 88 89 87 86 90 88 81 83 79 Engine 5 | . 14 11 11 9 7 7 7 7 5 5 5 . . . 1 . . . Core 1 | . . . . . . . . . . . . 4 9 8 4 1 . . Reactor 1 | . . . . . . . . . . . . . . . 2 6 8 7 Treads 14 | . 27 30 33 35 6 . . . . . . . . . . . . . Flight 13 | . . . . . 29 38 38 38 26 26 26 24 22 29 29 22 20 19 Device 7 | . 14 11 11 1 5 7 7 7 5 5 5 9 9 8 6 4 8 8 Storage 7 | . 14 11 11 9 7 7 7 7 5 5 5 5 4 4 4 4 4 4 Processor 3 | . . 3 . . 5 7 7 7 5 5 5 5 5 6 4 7 8 5 Hackware 10 | . . . . 12 15 15 15 15 16 20 21 20 14 18 21 13 22 24 Protection 8 | . . 7 11 12 1 . . . 10 9 10 5 9 4 5 12 5 3 Energy Gun 2 | . 13 3 . . . . . . . . . . . . . . . . Ballistic Gun 9 | . 13 18 22 17 2 . . . . . . . . . . 5 . . Slashing Weapon 1 | . . . . . 5 7 7 7 3 3 5 5 4 4 4 . . . Piercing Weapon 1 | . . . . . . . . . 1 5 5 5 4 4 2 . 7 7 Peak Build Rating 193 | 7 9 19 19 34 39 38 38 38 72 92 92 97 119 135 155 189 193 184 Average Rating 79 | 6 8 16 18 27 36 38 38 38 61 83 92 93 111 133 141 173 183 172 On Entrance 71 | 6 7 9 18 19 29 38 38 38 38 71 92 92 94 119 135 152 183 181 Avg Prop Armor Cover (%) 3 | . . 19 . . . . . . . . . 2 . 5 . 3 . . Naked Turns . | . . . . . . . . . . . . . . . . . . . Heaviest Build 107 | 14 90 97 100 107 99 21 21 21 37 38 38 42 47 47 71 77 78 50 Greatest Support 85 | 40 40 66 63 85 82 25 25 25 37 42 42 47 49 69 69 79 79 77 Greatest Overweight (x) 8 | . 4 8 1 1 1 . . . . . . . 1 . 1 1 . . Average Overweight (x) . | . 1 2 1 1 . . . . . . . . . . . . . . Largest Inventory Capacity 25 | 8 25 25 25 25 25 10 10 10 15 15 15 15 15 15 20 20 20 15 Average Capacity 20 | 8 22 25 25 25 13 10 10 10 11 15 15 15 15 15 20 20 15 15 Most Carried 25 | 6 25 25 25 25 25 10 10 10 15 15 15 15 15 15 20 20 19 15 Average Carried 19 | 3 18 24 24 24 12 10 10 10 11 14 15 14 14 14 18 18 15 14 Final Capacity 25 | 8 25 25 25 25 10 10 10 10 15 15 15 15 15 15 20 20 15 15 Final Carried 25 | 5 24 25 25 25 10 10 10 10 14 15 15 13 15 15 20 20 15 11 Class Distribution -------------------- 32% | Scavenger-Mutant 23% | Hacker-Sprinter 22% | Scavenger-Sprinter 14% | Mutant Dominant Class ---------------- Mutant | -10/Materials Scavenger-Mutant | -9/Materials Scavenger-Mutant | -9/Mines Scavenger-Mutant | -8/Materials Hacker-Sprinter | -7/Factory Hacker-Sprinter | -7/Storage Hacker-Sprinter | -7/Recycling Hacker-Sprinter | -7/Scraptown Hacker-Sprinter | -5/Factory Hacker-Sprinter | -4/Factory Hacker-Sprinter | -4/Waste Hacker-Sprinter | -4/Factory Hacker-Sprinter | -3/Research Hacker-Ninja | -2/Research Wizard-Sprinter | -2/Quarantine Scavenger-Sprinter | -2/Protoforge Wizard-Ninja | -1/Access Wizard-Sprinter | -1/Command Resources | -11 -10 -9 -9 -8 -7 -7 -7 -7 -5 -4 -4 -4 -3 -2 -2 -2 -1 -1 ----------- Run | Yrd Mat Mat Min Mat Fac Sto Rec Scr Fac Fac Was Fac Res Res Qua Frg Acc Com Matter Collected 12652 | 279 346 949 46 1222 158 . . . 240 162 . 188 113 47 133 8727 37 5 Remotely . | . . . . . . . . . . . . . . . . . . . Salvage Created 12627 | 192 644 1879 141 1389 158 30 . . 247 99 . 213 62 47 167 7322 37 . Parts 675 | 14 42 117 6 96 3 . . . 10 4 . 10 3 2 11 355 2 . Haulers Intercepted 9 | . 2 2 . 5 . . . . . . . . . . . . . . Recyclers Shooed 13 | 1 5 6 . . . . . . . . . . 1 . . . . . Parts Field Recycled . | . . . . . . . . . . . . . . . . . . . Retrieved Matter . | . . . . . . . . . . . . . . . . . . . Parts Self-Destructed . | . . . . . . . . . . . . . . . . . . . Prevented . | . . . . . . . . . . . . . . . . . . . Parts Restored . | . . . . . . . . . . . . . . . . . . . Kills | -11 -10 -9 -9 -8 -7 -7 -7 -7 -5 -4 -4 -4 -3 -2 -2 -2 -1 -1 ------- Run | Yrd Mat Mat Min Mat Fac Sto Rec Scr Fac Fac Was Fac Res Res Qua Frg Acc Com Combat Hostiles Destroyed 166 | . 11 36 3 28 . . . . . . . . . . . 88 . . Guns 158 | . 11 31 3 25 . . . . . . . . . . . 88 . . AOE 8 | . . 5 . 3 . . . . . . . . . . . . . . Classes Destroyed 22 | 2 5 3 1 1 . . . . . . . . . . . 10 . . Worker 14 | . 4 . . 1 5 . . . 3 . . . 1 . . . . . Builder 4 | . . 1 . 2 . . . . . 1 . . . . . . . . Tunneler 8 | 5 2 . . 1 . . . . . . . . . . . . . . Hauler 10 | . 2 2 . 5 . . . . . . . . . . . 1 . . Recycler 11 | 1 2 5 . . 1 . . . 1 . . . . . 1 . . . Mechanic 7 | . . . . . . . . . . . . . . . . 7 . . Operator 6 | . . 3 . . . . . . 2 . . . . . 1 . . . Drone 7 | . . . . . . . . . . . . . . . . 7 . . Watcher 21 | . 3 4 . 1 . 1 . . 1 2 . 5 1 1 1 . 1 . Swarmer 41 | . 8 12 . 10 . . . . . . . . . . . 11 . . Grunt 43 | . 3 14 2 10 . . . . . . . . . . . 14 . . Brawler 4 | . . . 1 . . . . . . . . . . . . 3 . . Duelist 5 | . . . . 1 . . . . . . . . . . . 4 . . Protector 7 | . . . . . . . . . . . . . . . . 7 . . Sentry 17 | . . 10 . 7 . . . . . . . . . . . . . . Hunter 3 | . . . . . . . . . . . . . . . . 3 . . Programmer 13 | . . . . . . . . . . . . . . . . 13 . . Hotshot 7 | . . . . . . . . . . . . . . . . 7 . . Decapitator 2 | . . . . . . . . . . . . . . . . 2 . . Immortal 1 | . . . . . . . . . . . . . . . . 1 . . Striker 5 | . . . . . . . . . . . . . . . . 5 . . Executioner 10 | . . . . . . . . . . . . . . . . 10 . . Elite 4 | . . . . . . . . . . . . . . . . 4 . . Scrapoid 5 | . . . . . . . . . . . . . . . . 5 . . Best Kill Streak 6 | 4 4 5 2 5 5 1 . . 2 1 . 1 1 1 1 6 1 . Combat Bots Only 5 | . 3 5 2 4 . . . . . . . . . . . 5 . . Max Kills in Single Turn 3 | 1 2 3 1 3 1 1 . . 1 1 . 1 1 1 1 2 1 . Gunslinging . | . . . . . . . . . . . . . . . . . . . Exploded 3 | . . 3 . 3 . . . . . . . . . . . . . . Melee . | . . . . . . . . . . . . . . . . . . . Uniques/NPCs Destroyed . | . . . . . . . . . . . . . . . . . . . Combat | -11 -10 -9 -9 -8 -7 -7 -7 -7 -5 -4 -4 -4 -3 -2 -2 -2 -1 -1 -------- Run | Yrd Mat Mat Min Mat Fac Sto Rec Scr Fac Fac Was Fac Res Res Qua Frg Acc Com Hostile Shots Fired 1168 | . 61 160 1 143 . 25 . . 7 26 . 42 6 4 14 505 11 163 Missed 565 | . 20 49 . 42 . 15 . . 2 16 . 23 3 1 9 302 9 74 Hits 603 | . 41 111 1 101 . 10 . . 5 10 . 19 3 3 5 203 2 89 Melee 17 | . . . . 5 . . . . . . . . . . . 11 1 . Projectile 586 | . 41 111 1 96 . 10 . . 5 10 . 19 3 3 5 192 1 89 AOE 6 | . . . . . . . . . . . . . . . . 5 . 1 Critical Strikes 41 | . . 2 . 9 . . . . . . . 2 . 1 . 21 . 6 Actively Blocked 12 | . . . . . . . . . . . . . . . . 12 . . Part Disruptions 1 | . . . . . . . . . . . . . . . . . 1 . Damage Taken 13777 | . 357 1362 12 1444 . 80 . . 160 215 . 679 137 72 156 6882 53 2168 Core 2492 | . 52 196 . 137 . 17 . . . 23 . 133 59 . . 1243 . 632 Absorbed by Shields 229 | . . . . . . . . . . . . . . . . . . 229 Redirected to Shielding 664 | . . . . . . . . . 15 . . 26 . . 30 593 . . Regen/Repaired (Parts) 471 | . 81 . . . . . . . . 94 . 75 . . 185 36 . . Core Remaining (%) 75 | 100 79 . 51 75 . . . 97 100 . . 86 95 . . 14 . 60 Volleys Fired 1059 | 13 55 135 6 128 . . . . . . . . . . . 722 . . Largest 2 | 2 2 2 2 2 . . . . . . . . . . . 2 . . Hottest 100 | 60 100 100 46 48 . . . . . . . . . . . 76 . . Shots Fired 2047 | 26 107 258 12 255 . . . . . . . . . . . 1389 . . Gun 2034 | 26 106 247 12 254 . . . . . . . . . . . 1389 . . Cannon . | . . . . . . . . . . . . . . . . . . . Launcher 3 | . . 2 . 1 . . . . . . . . . . . . . . Special 10 | . 1 9 . . . . . . . . . . . . . . . . Kinetic 1918 | 13 52 198 12 254 . . . . . . . . . . . 1389 . . Thermal 126 | 13 55 58 . . . . . . . . . . . . . . . . Explosive 3 | . . 2 . 1 . . . . . . . . . . . . . . Electromagnetic . | . . . . . . . . . . . . . . . . . . . Robot Hit Streak 15 | 12 11 15 11 12 . . . . . . . . . . . 9 . . Robot Miss Streak 9 | 3 4 3 3 9 . . . . . . . . . . . 8 . . Penetration Max 2 | . . . . . . . . . . . . . . . . 2 . . Secondary Targets 22 | . . 4 . 1 . . . . . . . . . . . 17 . . Max Gunslinging Chain 1 | . . 1 . 1 . . . . . . . . . . . 1 . . Shots Hit Robots 1097 | 17 65 165 8 163 7 2 . . 10 6 . 8 4 1 5 635 1 . Core Hits 527 | 8 30 78 4 68 1 1 . . 3 2 . 5 1 1 4 320 1 . Critical Kills 17 | . . 1 . . . . . . . . . . . . . 16 . . Critical Parts Destroyed 25 | 2 . 1 . . 2 1 . . 1 . . . . . . 18 . . Critical Strikes 57 | 2 5 6 . . 2 1 . . 1 . . 1 . . . 39 . . Burn 8 | . 5 3 . . . . . . . . . . . . . . . . Destroy 44 | 2 . 3 . . . . . . . . . . . . . 39 . . Smash 4 | . . . . . 2 1 . . 1 . . . . . . . . . Sever 1 | . . . . . . . . . . . . 1 . . . . . . Melee Attacks 213 | . . . . 1 10 5 . . 40 41 . 54 18 18 11 12 3 . Impact 29 | . . . . 1 7 4 . . 16 1 . . . . . . . . Slashing 148 | . . . . . 3 1 . . 6 33 . 52 18 17 9 9 . . Piercing 35 | . . . . . . . . . 17 7 . 2 . 1 2 3 3 . Sneak Attacks 17 | . . . . . 6 . . . 5 2 . 1 2 . 1 . . . Combat Hostiles . | . . . . . . . . . . . . . . . . . . . Follow-up Attacks 3 | . . . . . . 1 . . 1 . . . . . 1 . . . Damage Inflicted 34559 | 216 899 2716 153 2911 585 62 . . 615 477 . 547 342 64 393 24495 84 . Guns 30802 | 213 868 2412 122 2692 . . . . . . . . . . . 24495 . . Cannons . | . . . . . . . . . . . . . . . . . . . Explosions 473 | . . 278 . 195 . . . . . . . . . . . . . . Melee 3169 | . . . . . 585 62 . . 615 477 . 547 342 64 393 . 84 . Ramming 115 | 3 31 26 31 24 . . . . . . . . . . . . . . Kinetic 29744 | 92 382 1961 122 2692 . . . . . . . . . . . 24495 . . Thermal 1058 | 121 486 451 . . . . . . . . . . . . . . . . Explosive 473 | . . 278 . 195 . . . . . . . . . . . . . . Electromagnetic . | . . . . . . . . . . . . . . . . . . . Impact 783 | . . . . . 491 29 . . 263 . . . . . . . . . Slashing 2059 | . . . . . 94 33 . . 135 477 . 547 342 64 367 . . . Piercing 327 | . . . . . . . . . 217 . . . . . 26 . 84 . Highest Corruption 10 | . . . . . . . . . . 1 1 10 3 . . 5 . 1 Average Corruption 3 | . . . . . . . . . . 1 1 1 2 . . 3 . 1 Corruption Purged . | . . . . . . . . . . . . . . . . . . . Corruption Blocked . | . . . . . . . . . . . . . . . . . . . Effects 155 | . . . . . . . . . . 2 . 15 4 . . 134 . . Message Errors 38 | . . . . . . . . . . . . 2 3 . . 33 . . Matter Fused 40 | . . . . . . . . . . 1 . 5 . . . 34 . . Heat Flow Errors 16 | . . . . . . . . . . . . 1 . . . 15 . . Energy Discharges 11 | . . . . . . . . . . . . 2 . . . 9 . . Parts Rejected 5 | . . . . . . . . . . . . . . . . 5 . . Parts Fused 4 | . . . . . . . . . . . . 2 . . . 2 . . Data Loss (minor) 22 | . . . . . . . . . . 1 . 3 1 . . 17 . . Data Loss (major) 6 | . . . . . . . . . . . . . . . . 6 . . Alerts 1 | . . . . . . . . . . . . . . . . 1 . . Weapon Failures 12 | . . . . . . . . . . . . . . . . 12 . . Overload Shots . | . . . . . . . . . . . . . . . . . . . Overflow Damage 991 | . . 11 . 41 417 29 . . 233 108 . 26 90 . 36 . . . Projectiles . | . . . . . . . . . . . . . . . . . . . Explosions 51 | . . 10 . 41 . . . . . . . . . . . . . . Melee 940 | . . 1 . . 417 29 . . 233 108 . 26 90 . 36 . . . Knockbacks 1 | . . . . . 1 . . . . . . . . . . . . . Impact 1 | . . . . . 1 . . . . . . . . . . . . . Kinetic . | . . . . . . . . . . . . . . . . . . . Secondary . | . . . . . . . . . . . . . . . . . . . Self-Inflicted Damage 34 | . . 34 . . . . . . . . . . . . . . . . Shots 1 | . . 1 . . . . . . . . . . . . . . . . Rammed 15 | 1 4 2 4 4 . . . . . . . . . . . . . . Targets Rammed 18 | 1 6 2 4 5 . . . . . . . . . . . . . . Kicked . | . . . . . . . . . . . . . . . . . . . Crushed 3 | . 2 . . 1 . . . . . . . . . . . . . . Highest Temperature 254 | 20 102 36 5 254 2 20 4 2 3 3 . 204 7 138 . 237 18 2 Average Temperature 30 | 20 20 11 3 44 2 8 2 2 3 2 . 116 1 66 . 95 4 2 Received Heat Transfer 1785 | . 69 492 6 720 . 27 . . 18 45 . 18 . . . 337 20 33 Effects 3 | . . . . . . . . . . . . . . . . 3 . . Interference 3 | . . . . . . . . . . . . . . . . 3 . . Siege Activations . | . . . . . . . . . . . . . . . . . . . Martial Activations . | . . . . . . . . . . . . . . . . . . . Shielding Activations . | . . . . . . . . . . . . . . . . . . . Robots Disrupted . | . . . . . . . . . . . . . . . . . . . Combat Hostiles . | . . . . . . . . . . . . . . . . . . . Robots Corrupted 1 | . . . . . 1 . . . . . . . . . . . . . Combat Hostiles . | . . . . . . . . . . . . . . . . . . . Parts Fried 7 | . . . . . 3 1 . . 3 . . . . . . . . . Impact Corruptions 15 | . . 1 . . 9 1 . . 4 . . . . . . . . . Robots Melted . | . . . . . . . . . . . . . . . . . . . Combat Hostiles . | . . . . . . . . . . . . . . . . . . . Parts Melted 9 | . 2 3 . . . . . . . . . . . . . 4 . . Heat Transferred 3642 | 275 1813 1554 . . . . . . . . . . . . . . . . Parts Sabotaged . | . . . . . . . . . . . . . . . . . . . Parts Stolen . | . . . . . . . . . . . . . . . . . . . Parts Stripped . | . . . . . . . . . . . . . . . . . . . Power Chain Reactions . | . . . . . . . . . . . . . . . . . . . Alert | -11 -10 -9 -9 -8 -7 -7 -7 -7 -5 -4 -4 -4 -3 -2 -2 -2 -1 -1 ------- Run | Yrd Mat Mat Min Mat Fac Sto Rec Scr Fac Fac Was Fac Res Res Qua Frg Acc Com Maximum Alert Level 5 | . . 2 . 1 . . . . . . . . . . . 5 5 4 Low Security (%) 66 | 100 100 53 100 62 100 100 100 . 100 100 100 100 100 100 100 29 . . Level 1 9 | . . 15 . 37 . . . . . . . . . . . 4 . . Level 2 6 | . . 31 . . . . . . . . . . . . . 5 . . Level 3 2 | . . . . . . . . . . . . . . . . 8 . . Level 4 4 | . . . . . . . . . . . . . . . . 15 . 100 Level 5 11 | . . . . . . . . . . . . . . . . 36 100 . High Security . | . . . . . . . . . . . . . . . . . . . Max Security . | . . . . . . . . . . . . . . . . . . . Peak Influence 3506 | 15 133 497 186 250 106 56 21 . 40 85 1 28 27 27 35 3506 2123 1308 Initial 2103 | . . 14 186 . 106 33 21 . . 7 1 . 12 9 2 19 2103 1296 Average 448 | 4 35 234 49 130 88 46 15 . 9 27 . 2 4 2 6 1294 2078 1286 Influence Increases 8127 | 30 404 1102 166 929 48 53 . . 241 390 . 222 93 79 136 4149 43 42 Destroy 0b10 Robot/C 3120 | . 220 720 120 580 . . . . . . . . . . . 1480 . . Destroy 0b10 Robot/NC 475 | 30 65 75 . 55 30 5 . . 35 15 . 25 10 5 15 105 5 . Destroy Leader 680 | . 60 182 20 162 . 2 . . 2 4 . 10 2 2 2 230 2 . Allied During Kill 16 | . . . 11 5 . . . . . . . . . . . . . . Successful Hack 341 | . 26 27 . 10 17 . . . 23 82 . 28 27 24 26 39 . 12 Disable Machine 255 | . 15 . . 30 . 15 . . 45 15 . 15 15 . 45 60 . . Destroy Structure 420 | . 3 23 . 12 1 1 . . 46 64 . 84 24 48 3 105 6 . Partial Spotted 690 | . . 15 . 15 . 30 . . 30 120 . 60 15 . . 345 30 30 Lose Combat Pursuer 2130 | . 15 60 15 60 . . . . 60 90 . . . . 45 1785 . . Influence Decreases 6939 | 30 368 661 643 694 209 71 55 1 226 400 5 198 100 92 105 678 1523 880 Entered New Map 2702 | . . 22 291 . 129 41 35 1 . 8 4 . 12 8 2 16 1403 730 Time Decay 3782 | 30 368 589 312 639 80 30 20 . 216 372 1 186 88 84 98 519 120 30 Lost Part 345 | . . 50 . 20 . . . . . . . 12 . . . 143 . 120 Lost Ally 110 | . . . 40 35 . . . . 10 20 . . . . 5 . . . Squads Dispatched 72 | . 1 3 . 4 . . . . 8 11 . 13 5 5 2 11 6 3 Investigation 39 | . 1 1 . 2 . . . . 4 8 . 8 2 2 . 8 1 2 Extermination 17 | . . . . . . . . . 2 3 . 5 2 2 1 1 1 . Reinforcement 11 | . . 2 . 1 . . . . 2 . . . 1 1 1 2 . 1 Assault 4 | . . . . . . . . . . . . . . . . . 4 . Garrison 1 | . . . . 1 . . . . . . . . . . . . . . Intercept . | . . . . . . . . . . . . . . . . . . . Searches Triggered . | . . . . . . . . . . . . . . . . . . . Construction Impeded . | . . . . . . . . . . . . . . . . . . . Haulers Reinforced . | . . . . . . . . . . . . . . . . . . . Active Scanning Responses . | . . . . . . . . . . . . . . . . . . . Cargo Convoy Interrupts . | . . . . . . . . . . . . . . . . . . . Stealth | -11 -10 -9 -9 -8 -7 -7 -7 -7 -5 -4 -4 -4 -3 -2 -2 -2 -1 -1 --------- Run | Yrd Mat Mat Min Mat Fac Sto Rec Scr Fac Fac Was Fac Res Res Qua Frg Acc Com Distress Signals 45 | . 2 5 . 8 . 1 . . 1 2 . 6 . . . 19 1 . Communications Jammed 2 | . . . . . . . . . . . . . . . . . . 2 Distress Signals 2 | . . . . . . . . . . . . . . . . . . 2 Times Spotted 967 | . 25 57 5 60 . 4 . . 13 17 3 36 10 8 6 695 10 18 Peak Tracking Total 15 | . 4 5 3 6 . 6 . . 4 9 3 7 6 4 3 14 5 15 Tactical Retreats 117 | . 1 4 1 3 . . . . 5 8 . 12 3 3 2 71 3 1 ECM-based Alert Blocks 59 | . . . . . . . . . 2 10 . 29 7 7 . . 2 2 Traps | -11 -10 -9 -9 -8 -7 -7 -7 -7 -5 -4 -4 -4 -3 -2 -2 -2 -1 -1 ------- Run | Yrd Mat Mat Min Mat Fac Sto Rec Scr Fac Fac Was Fac Res Res Qua Frg Acc Com Traps Triggered 21 | . 3 . . 2 . . . . 1 3 . 1 1 . . 1 1 8 Indirectly . | . . . . . . . . . . . . . . . . . . . Trap Hack Attempts . | . . . . . . . . . . . . . . . . . . . Triggered . | . . . . . . . . . . . . . . . . . . . Disarmed . | . . . . . . . . . . . . . . . . . . . Reprogrammed . | . . . . . . . . . . . . . . . . . . . Reused . | . . . . . . . . . . . . . . . . . . . Traps Extracted . | . . . . . . . . . . . . . . . . . . . Installed . | . . . . . . . . . . . . . . . . . . . Triggered . | . . . . . . . . . . . . . . . . . . . Machines | -11 -10 -9 -9 -8 -7 -7 -7 -7 -5 -4 -4 -4 -3 -2 -2 -2 -1 -1 ---------- Run | Yrd Mat Mat Min Mat Fac Sto Rec Scr Fac Fac Was Fac Res Res Qua Frg Acc Com Machines Disabled 18 | . 1 . . 2 . 1 . . 3 1 . 1 1 . 3 5 . . Max in Single Turn 1 | . 1 . . 1 . 1 . . 1 1 . 1 1 . 1 1 . . Garrison Access 10 | . . . . . . . . . 3 3 . 3 . . 1 . . . Machines Repaired . | . . . . . . . . . . . . . . . . . . . Machines Dismantled . | . . . . . . . . . . . . . . . . . . . Machines Sabotaged . | . . . . . . . . . . . . . . . . . . . Overloaded Fab Kills . | . . . . . . . . . . . . . . . . . . . Hacking | -11 -10 -9 -9 -8 -7 -7 -7 -7 -5 -4 -4 -4 -3 -2 -2 -2 -1 -1 --------- Run | Yrd Mat Mat Min Mat Fac Sto Rec Scr Fac Fac Was Fac Res Res Qua Frg Acc Com Machines Accessed 138 | . 8 6 . 10 4 2 . 4 14 20 . 26 10 8 8 12 4 2 Terminals 74 | . 7 4 . 6 3 2 . . 6 8 . 12 5 5 5 5 4 2 Fabricators 5 | . . . . . . . . . . . . 1 1 . . 3 . . Repair Stations 8 | . 1 . . 1 . . . . . 2 . 1 . . 2 1 . . Recycling Units 25 | . . . . . . . . . 4 7 . 7 2 2 . 3 . . Scanalyzers 9 | . . 2 . 2 1 . . . . . . 2 1 1 . . . . Garrison Access 13 | . . . . 1 . . . . 4 3 . 3 1 . 1 . . . Total Hacks 292 | . 19 15 . 34 8 3 . 11 26 40 . 54 18 15 15 23 5 6 Successful 195 | . 8 11 . 23 8 2 . 11 14 28 . 32 9 13 12 15 3 6 Failed 95 | . 11 4 . 10 . 1 . . 12 12 . 21 9 2 3 8 2 . Catastrophic 9 | . 3 . . . . . . . . . . 4 . . . 2 . . Database Lockouts 2 | . . . . 1 . . . . . . . 1 . . . . . . Manual 155 | . 14 6 . 10 5 2 . . 17 25 . 37 10 7 6 12 1 3 Terminals 162 | . 17 7 . 14 6 3 . . 14 20 . 33 11 8 9 9 5 6 Fabricators 10 | . . . . . . . . . . . . 1 1 . . 8 . . Repair Stations 22 | . 2 . . 4 . . . . . 6 . 4 . . 4 2 . . Recycling Units 30 | . . . . . . . . . 5 8 . 9 2 2 . 4 . . Scanalyzers 35 | . . 8 . 14 2 . . . . . . 4 2 5 . . . . Garrison Access 22 | . . . . 2 . . . . 7 6 . 3 2 . 2 . . . Terminal Hacks 72 | . 4 2 . 4 4 2 . 11 4 8 . 9 5 5 6 1 3 4 Record 13 | . . . . . . . . 10 . . . . . . 3 . . . Part Schematic 7 | . 3 . . 2 . . . . . 2 . . . . . . . . Open Door 5 | . . . . . . 1 . . . . . . . 1 . . 3 . Level Access Points 5 | . . . . . . . . . 1 1 . 1 1 . . . . 1 Branch Access Points 4 | . . 1 . . 1 1 . . . . . . . 1 . . . . Emergency Access Points 2 | . . . . . . . . . . . . . . 1 . . . 1 Terminal Index 6 | . . . . . 1 . . . 1 1 . 1 1 . 1 . . . Recycling Unit Index 2 | . . . . . . . . . . . . 1 1 . . . . . Garrison Index 1 | . . . . . . . . . . . . 1 . . . . . . Locate Traps 4 | . 1 . . . 1 . . . . . . . 1 . . 1 . . Maintenance Status 7 | . . . . . 1 . . . 1 1 . 1 1 1 1 . . . Patrol Status 1 | . . . . . . . . . . . . . . . . . . 1 Recall Investigation 1 | . . . . . . . . . . . . 1 . . . . . . Recall Extermination 7 | . . . . . . . . . 1 2 . 3 . 1 . . . . Hauler Manifests 3 | . . 1 . 2 . . . . . . . . . . . . . . Zone Layout 3 | . . . . . . . . . . 1 . . . . 1 . . 1 Proto ID Catalog 1 | . . . . . . . . 1 . . . . . . . . . . Fabricator Hacks 8 | . . . . . . . . . . . . 1 1 . . 6 . . Network Status 2 | . . . . . . . . . . . . 1 1 . . . . . Load Schematic 3 | . . . . . . . . . . . . . . . . 3 . . Build 3 | . . . . . . . . . . . . . . . . 3 . . Repair Station Hacks 21 | . 2 . . 3 . . . . . 6 . 4 . . 4 2 . . Scan Component 11 | . 1 . . 2 . . . . . 3 . 2 . . 2 1 . . Repair 10 | . 1 . . 1 . . . . . 3 . 2 . . 2 1 . . Recycling Unit Hacks . | . . . . . . . . . . . . . . . . . . . Scanalyzer 28 | . . 7 . 13 2 . . . . . . 1 . 5 . . . . Insert Component 7 | . . 2 . 5 . . . . . . . . . . . . . . Analyze 11 | . . 3 . 8 . . . . . . . . . . . . . . Retrieve Study 10 | . . 2 . . 2 . . . . . . 1 . 5 . . . . Garrison Access Hacks 10 | . . . . . . . . . 3 3 . 3 . . 1 . . . Seal Access 10 | . . . . . . . . . 3 3 . 3 . . 1 . . . Unauthorized Hacks 56 | . 2 2 . 3 2 . . . 7 11 . 14 3 3 1 6 . 2 Terminals 31 | . 2 2 . 3 2 . . . 3 4 . 7 1 1 1 3 . 2 Track 5 | . . . . . . . . . . . . 1 . . . 3 . 1 Assimilate 8 | . . . . . . . . . 1 2 . 4 . . 1 . . . Botnet 18 | . 2 2 . 3 2 . . . 2 2 . 2 1 1 . . . 1 Fabricators . | . . . . . . . . . . . . . . . . . . . Repair Stations . | . . . . . . . . . . . . . . . . . . . Recycling Units 25 | . . . . . . . . . 4 7 . 7 2 2 . 3 . . Fedlink 25 | . . . . . . . . . 4 7 . 7 2 2 . 3 . . Scanalyzers . | . . . . . . . . . . . . . . . . . . . Garrison Access . | . . . . . . . . . . . . . . . . . . . Data Cores Recovered 2 | . . 1 . . . . . . 1 . . . . . . . . . Used 1 | . . . . . . . . . 1 . . . . . . . . . Hacking Detections 76 | . 5 2 . 6 2 1 . . 6 8 . 16 7 4 6 9 2 2 Full Trace Events 4 | . . . . . . . . . . . . 1 . . . 3 . . Feedback Events . | . . . . . . . . . . . . . . . . . . . Feedback Blocked . | . . . . . . . . . . . . . . . . . . . Robot Schematics Acquired . | . . . . . . . . . . . . . . . . . . . Robots Built . | . . . . . . . . . . . . . . . . . . . Authchips . | . . . . . . . . . . . . . . . . . . . Time . | . . . . . . . . . . . . . . . . . . . Total Robot Build Rating . | . . . . . . . . . . . . . . . . . . . Part Schematics Acquired 14 | . 3 2 . 7 . . . . . 2 . . . . . . . . Parts Built 3 | . . . . . . . . . . . . . . . . 3 . . Authchips . | . . . . . . . . . . . . . . . . . . . Time 105 | . . . . . . . . . . . . . . . . 105 . . Total Part Build Rating 18 | . . . . . . . . . . . . . . . . 18 . . Part Studies Acquired 10 | . . 2 . . 2 . . . . . . 1 . 5 . . . . Parts Repaired 10 | . 1 . . 1 . . . . . 3 . 2 . . 2 1 . . Time 475 | . 26 . . 53 . . . . . 184 . 112 . . 50 50 . . Parts Recycled . | . . . . . . . . . . . . . . . . . . . Recycled Matter . | . . . . . . . . . . . . . . . . . . . Retrieved Matter . | . . . . . . . . . . . . . . . . . . . Retrieved Components . | . . . . . . . . . . . . . . . . . . . Parts Scanalyzed 7 | . . 2 . 5 . . . . . . . . . . . . . . Part Schematics Acquired 7 | . . 2 . 5 . . . . . . . . . . . . . . Parts Damaged 3 | . . . . 3 . . . . . . . . . . . . . . Bothacking | -11 -10 -9 -9 -8 -7 -7 -7 -7 -5 -4 -4 -4 -3 -2 -2 -2 -1 -1 ------------ Run | Yrd Mat Mat Min Mat Fac Sto Rec Scr Fac Fac Was Fac Res Res Qua Frg Acc Com Used RIF Installer . | . . . . . . . . . . . . . . . . . . . Robots Hacked 1 | . . . . . . . . . 1 . . . . . . . . . Non-combat 1 | . . . . . . . . . 1 . . . . . . . . . Combat . | . . . . . . . . . . . . . . . . . . . Robot Hacks Applied 1 | . . . . . . . . . 1 . . . . . . . . . find_chute 1 | . . . . . . . . . 1 . . . . . . . . . Relay Couplers Released . | . . . . . . . . . . . . . . . . . . . Fabnet Peak Effective % . | . . . . . . . . . . . . . . . . . . . Robots Rewired . | . . . . . . . . . . . . . . . . . . . Allies Hacked . | . . . . . . . . . . . . . . . . . . . Hacks Repelled . | . . . . . . . . . . . . . . . . . . . Allies | -11 -10 -9 -9 -8 -7 -7 -7 -7 -5 -4 -4 -4 -3 -2 -2 -2 -1 -1 -------- Run | Yrd Mat Mat Min Mat Fac Sto Rec Scr Fac Fac Was Fac Res Res Qua Frg Acc Com Total Allies 12 | . . . 5 . . . . . 1 2 . 3 . . 1 . . . Largest Group 3 | . . . 3 3 . . . . 1 2 . 1 . . 1 . . . Highest-Rated Group 49 | . . . 49 40 . . . . 26 36 . 45 . . 45 . . . Highest-Rated Ally 45 | . . . 31 16 . . . . 26 26 . 45 . . 45 . . . Initial UFD Resources 133 | . . . . . . . . . 38 60 84 84 101 119 133 133 . . Total Orders 2 | . . . . . . . . . . . . 2 . . . . . . STAY 1 | . . . . . . . . . . . . 1 . . . . . . FOLLOW 1 | . . . . . . . . . . . . 1 . . . . . . Ally Attacks 26 | . . . 7 19 . . . . . . . . . . . . . . Total Damage 327 | . . . 129 198 . . . . . . . . . . . . . . Kills 5 | . . . 3 2 . . . . . . . . . . . . . . Allies Corrupted . | . . . . . . . . . . . . . . . . . . . Allies Melted 3 | . . . . . . . . . . . . . . . . 3 . . Intel | -11 -10 -9 -9 -8 -7 -7 -7 -7 -5 -4 -4 -4 -3 -2 -2 -2 -1 -1 ------- Run | Yrd Mat Mat Min Mat Fac Sto Rec Scr Fac Fac Was Fac Res Res Qua Frg Acc Com Active Infowar (turns) 21700 | 17 2756 3733 1414 789 140 64 41 333 1023 1315 20 1624 518 571 358 6657 251 76 Optics 6044 | . . . . . . . . . . . . . 184 295 . 5238 251 76 Sensors 7824 | . . . . 1 140 64 41 333 1013 1315 20 1619 518 571 356 1576 251 6 Seismic 8708 | 17 2756 3733 1414 788 . . . . . . . . . . . . . . T.N.C. 1070 | . . 1070 . . . . . . . . . . . . . . . . Jamming 40 | . . . . . . . . . . . . . . . . . . 40 ECM 3300 | . . . . . . . . . 92 149 . 1462 518 571 249 . 197 62 Robot Analysis Total . | . . . . . . . . . . . . . . . . . . . Derelict Logs Recovered 1 | . . . 1 . . . . . . . . . . . . . . . Drone Launches . | . . . . . . . . . . . . . . . . . . . Drone Recoveries . | . . . . . . . . . . . . . . . . . . . Exploration | -11 -10 -9 -9 -8 -7 -7 -7 -7 -5 -4 -4 -4 -3 -2 -2 -2 -1 -1 ------------- Run | Yrd Mat Mat Min Mat Fac Sto Rec Scr Fac Fac Was Fac Res Res Qua Frg Acc Com Turns Passed 24773 | 104 2760 3733 1414 3641 167 64 41 333 1023 1315 20 1624 518 571 358 6760 251 76 Spaces Moved 30123 | 23 874 1314 574 1314 395 141 170 1295 2381 2849 72 3892 1218 1028 667 11363 357 196 Core . | . . . . . . . . . . . . . . . . . . . Treads 3882 | 23 866 1097 574 1314 8 . . . . . . . . . . . . . Legs . | . . . . . . . . . . . . . . . . . . . Wheels 225 | . 8 217 . . . . . . . . . . . . . . . . Hover . | . . . . . . . . . . . . . . . . . . . Flight 26016 | . . . . . 387 141 170 1295 2381 2849 72 3892 1218 1028 667 11363 357 196 Fastest Speed 19 | 160 140 200 240 236 23 24 24 24 24 27 27 27 28 23 22 19 23 25 Average Speed 56 | 160 279 233 240 236 27 24 24 24 26 27 27 28 29 29 22 27 28 29 Slowest Speed 320 | 160 320 240 240 240 236 24 24 24 29 27 27 32 109 30 100 98 29 42 Overloaded Moves 76 | . . . . . . . . . . . . . . . . 65 8 3 Propulsion Burnouts . | . . . . . . . . . . . . . . . . . . . Robots Hopped 214 | . . . . . . 4 3 . 8 33 . 37 9 4 5 103 4 4 Potential Cave-ins 9 | . . 1 . . . . . . . . . . . . . 8 . . Cave-ins Triggered 1 | . . . . . . . . . . . . 1 . . . . . . Exploration Rate (%) 52 | 4 95 97 99 70 12 29 57 88 48 54 69 69 40 26 66 56 10 13 Regions Visited 18 Branch Regions 7 Pre-discovered Areas 5 | . . . 1 . . . . 3 1 . . . . . . . . . Known Exits Taken 12 | . . 1 . . 1 1 1 1 1 . . 1 1 1 1 1 1 . Unknown Exits Taken 4 | 1 1 . 1 1 . . . . . . . . . . . . . . Scrap Searched 6 | . . . 1 . . . . 5 . . . . . . . . . . Spaces Dug 151 | . 1 9 . . 1 1 . . 23 32 . 43 12 16 1 10 2 . Terrain Destroyed 251 | . 1 22 . 11 1 1 . . 23 32 . 43 12 16 1 86 2 . Melee 140 | . . . . . 1 1 . . 23 32 . 43 12 16 1 9 2 . Projectile 87 | . 1 9 . . . . . . . . . . . . . 77 . . AOE 24 | . . 13 . 11 . . . . . . . . . . . . . . Terrain Rammed . | . . . . . . . . . . . . . . . . . . . Walls Destroyed . | . . . . . . . . . . . . . . . . . . . Machines Disabled . | . . . . . . . . . . . . . . . . . . . Actions | -11 -10 -9 -9 -8 -7 -7 -7 -7 -5 -4 -4 -4 -3 -2 -2 -2 -1 -1 --------- Run | Yrd Mat Mat Min Mat Fac Sto Rec Scr Fac Fac Was Fac Res Res Qua Frg Acc Com Total 35208 | 64 1069 1723 595 1645 443 159 166 1316 2707 3300 71 4285 1345 1264 849 13501 495 211 Wait 3003 | 18 83 158 8 87 10 17 . 20 245 405 . 333 92 208 154 1035 127 3 Move 29714 | 22 873 1313 573 1313 394 133 163 1294 2364 2788 71 3819 1199 1019 656 11183 350 187 Hop 177 | . . . . . . 3 3 . 8 28 . 35 9 4 5 76 2 4 Pick Up 222 | 2 29 32 1 27 3 1 . . 11 13 . 14 9 5 9 64 1 1 Fast Attach 102 | 1 3 9 . 10 . . . . 4 3 . 7 5 1 3 55 . 1 Attach 90 | 1 4 7 . 6 9 . . . 8 5 . 11 2 3 2 23 4 5 Detach 11 | 1 . . . . . . . . 4 . . . . . . 5 . 1 Swap 176 | 2 7 20 1 24 3 . . 1 14 7 . 3 1 3 6 80 4 . Drop 331 | 3 9 47 2 44 16 1 . 1 11 10 . 11 10 4 5 151 4 2 Fire 1059 | 13 55 135 6 128 . . . . . . . . . . . 722 . . Melee 203 | . . . . 1 8 4 . . 38 41 . 52 18 17 9 12 3 . Ram 1 | . . 1 . . . . . . . . . . . . . . . . Kick . | . . . . . . . . . . . . . . . . . . . Crush 17 | 1 6 1 4 5 . . . . . . . . . . . . . . Escape Stasis 22 | . . . . . . . . . . . . . . . . 15 . 7 Rewire . | . . . . . . . . . . . . . . . . . . . Trap . | . . . . . . . . . . . . . . . . . . . Miscellaneous 80 | . . . . . . . . . . . . . . . . 80 . . Route ------- -11/Scrapyard -10/Materials (discovered 5 exits: *Mat x3 / [*Min x2]) -9/Materials (discovered 5 exits: *Mat x3 / *Min x2) -9/Mines (discovered 3 exits: *Mat x2 / *Exi) -8/Materials (discovered 2 exits: *Fac x2) -7/Factory (discovered 4 exits: *Sto x2 / *Low x2) -7/Storage -7/Recycling -7/Scraptown -5/Factory (discovered 6 exits: *Fac x4 / *Upp x2) -4/Factory (discovered 6 exits: *Res x4 / *Upp x2) -4/Waste -4/Factory (discovered 5 exits: *Res x4 / *Upp) -3/Research (discovered 4 exits: *Res x3 / *Tes) -2/Research (discovered 2 exits: *Qua x2) -2/Quarantine (discovered 3 exits: *Acc / [*Sec] / *Frg) -2/Protoforge -1/Access -1/Command (discovered 2 exits: *Sur x2) To Epsilon Eridani History --------- Turn | Location | Event 20 | -11/Scrapyard | Discovered new exit (range 2) 105 | -11/Scrapyard | Entered Materials 220 | -10/Materials | Discovered new exit (range 16) 311 | -10/Materials | Build established: Mutant 679 | -10/Materials | Discovered new exit (range 10) 1066 | -10/Materials | Discovered new exit (range 16) 1518 | -10/Materials | Discovered new exit (range 16) 1889 | -10/Materials | Repaired Assault Rifle 2163 | -10/Materials | Discovered new exit (range 16) 2865 | -10/Materials | Entered another Materials area 2865 | -9/Materials | Evolved 2 slots: Propulsion x1, Utility x1 3347 | -9/Materials | Discovered new exit (range 6) 4042 | -9/Materials | Build established: Scavenger-Mutant 4087 | -9/Materials | Identified exit to Mines 4212 | -9/Materials | Discovered new exit (range 4) 4634 | -9/Materials | Discovered new exit (range 4) 5643 | -9/Materials | Discovered new exit (range 16) 6598 | -9/Materials | Entered Mines 6642 | -9/Mines | Discovered new exit (range 5) 7017 | -9/Mines | Identified exit to Exiles 7308 | -9/Mines | Found a damaged Exp. Sensor Array with a note attached 7313 | -9/Mines | Found Prototype Device 7443 | -9/Mines | Deemed a non-threat by the Exiles lab entrance 7578 | -9/Mines | Discovered new exit (range 4) 7789 | -9/Mines | Assisted by bots powering up and referring to "LRC-V3" 7876 | -9/Mines | Learned location of Storage (-7) 8012 | -9/Mines | Entered Materials 8012 | -8/Materials | Accompanied by 3 allies 8012 | -8/Materials | Evolved 2 slots: Propulsion x1, Utility x1 8225 | -8/Materials | Garrison activated, responded to threat 8294 | -8/Materials | Lost 3 allies 8742 | -8/Materials | Identified Exp. Sensor Array 9402 | -8/Materials | Discovered new exit (range 16) 9912 | -8/Materials | Discovered new exit (range 14) 10238 | -8/Materials | Central database locked down 10770 | -8/Materials | Repaired Broken Lgt. Deuterium Engine 11653 | -8/Materials | Entered Factory 11653 | -7/Factory | Evolved 2 slots: Propulsion x1, Utility x1 11728 | -7/Factory | Identified exit to Storage 11728 | -7/Factory | Identified exit to Lower Caves 11820 | -7/Factory | Entered Storage 11851 | -7/Storage | Identified exit to Recycling 11883 | -7/Storage | Used back door to open Recycling access 11884 | -7/Storage | Entered Recycling 11919 | -7/Recycling | Scanned before Scraplab entrance 11923 | -7/Recycling | Entered Scraplab 11925 | -7/Recycling | Discovered new exit (range 3) 11925 | -7/Recycling | Identified exit to Scraptown 11925 | -7/Recycling | Entered Scraptown 11938 | -7/Scraptown | Heard Great Nut preacher, LISTEN AND RECITE! 11979 | -7/Scraptown | Build established: Hacker-Sprinter 11999 | -7/Scraptown | Visited SPCMW 12004 | -7/Scraptown | Visited Red Mages 12018 | -7/Scraptown | Learned location of Extension (-5) 12060 | -7/Scraptown | Visited Cave Peace 12067 | -7/Scraptown | Visited Symbiants 12079 | -7/Scraptown | Visited Assassins FH 12084 | -7/Scraptown | Visited TADAMA 12090 | -7/Scraptown | Visited Cyclists 12095 | -7/Scraptown | Visited UFD Registry 12095 | -7/Scraptown | Registered with UFD as "Zeroboard" 12101 | -7/Scraptown | Visited Science Testing Area 12107 | -7/Scraptown | Visited DA-N13 Charitable Foundation 12109 | -7/Scraptown | Found DCF Scrap (27 items) 12155 | -7/Scraptown | Entered Cyclist Reading Room 12156 | -7/Scraptown | Learned location of Zion (-7) 12170 | -7/Scraptown | Visited Cartography Club 12178 | -7/Scraptown | Visited Botcube Research 12183 | -7/Scraptown | Visited Chapter 10 12189 | -7/Scraptown | Visited Science Guys 12196 | -7/Scraptown | Visited Junk Repository 12202 | -7/Scraptown | Visited Research Penetration Think Tank 12207 | -7/Scraptown | Visited Supply Room 12219 | -7/Scraptown | Met Optimus 12219 | -7/Scraptown | Accepted into 0bPrime 12237 | -7/Scraptown | Discovered new exit (range 3) 12237 | -7/Scraptown | Identified exit to Factory 12258 | -7/Scraptown | Entered Factory 12258 | -5/Factory | Evolved 4 slots: Propulsion x1, Utility x3 12311 | -5/Factory | Discovered new exit (range 15) 12319 | -5/Factory | Identified exit to Upper Caves 12410 | -5/Factory | Loaded intel: 8 recycling unit locations 12553 | -5/Factory | Discovered new exit (range 15) 12556 | -5/Factory | Identified exit to Factory 12617 | -5/Factory | Discovered exit to Upper Caves (range 14) 12764 | -5/Factory | Learned location of Protoforge (-2) 13281 | -5/Factory | Entered another Factory area 13281 | -4/Factory | Evolved 2 slots: Propulsion x1, Utility x1 13316 | -4/Factory | Discovered new exit (range 5) 13318 | -4/Factory | Identified exit to Upper Caves 13373 | -4/Factory | Loaded intel: 8 recycling unit locations 13610 | -4/Factory | Discovered exit to Upper Caves (range 8) 13627 | -4/Factory | Identified exit to Research 13796 | -4/Factory | Watched by a mysterious "MATRIX" hacker 13950 | -4/Factory | Repaired Exp. Sensor Array? 14131 | -4/Factory | Repaired Lgt. Deuterium Engine+ 14170 | -4/Factory | Repaired Imp. Light Armor Plating 14592 | -4/Factory | Found Prototype Hackware 14592 | -4/Factory | Identified Exp. Hacking Suite 14596 | -4/Factory | Manually triggered Chute Trap 14596 | -4/Factory | Sucked down chute 14596 | -4/Factory | Entered Waste 14599 | -4/Waste | Spotted C-40 Crusher 14600 | -4/Waste | Spotted C-40 Crusher 14606 | -4/Waste | Spotted C-40 Crusher 14610 | -4/Waste | Spotted C-40 Crusher 14610 | -4/Waste | Spotted C-40 Crusher 14611 | -4/Waste | Discovered new exit (range 14) 14615 | -4/Waste | Identified exit to Factory 14616 | -4/Waste | Entered Factory 14754 | -4/Factory | Spotted B-86 Titan 14814 | -4/Factory | Discovered exit to Research (range 14) 15084 | -4/Factory | Repaired Nuclear Pulse Array+ 15141 | -4/Factory | Repaired Nuclear Pulse Array+ 15208 | -4/Factory | Loaded intel: 8 recycling unit locations 15577 | -4/Factory | Central database locked down 15661 | -4/Factory | Discovered exit to Upper Caves (range 15) 16138 | -4/Factory | Crushed by falling debris 16138 | -4/Factory | System corruption reached 10% 16169 | -4/Factory | Lost 3 parts (1n2u) 16240 | -4/Factory | Entered Research 16240 | -3/Research | Evolved 2 slots: Power x1, Utility x1 16374 | -3/Research | Discovered new exit (range 8) 16379 | -3/Research | Identified exit to Testing 16466 | -3/Research | Identified exit to Research 16594 | -3/Research | Loaded intel: 5 recycling unit locations 16758 | -3/Research | Entered another Research area 16758 | -2/Research | Evolved 2 slots: Propulsion x2 16824 | -2/Research | Identified exit to Quarantine 16864 | -2/Research | Build established: Hacker-Ninja 17232 | -2/Research | Loaded intel: 5 recycling unit locations 17329 | -2/Research | Entered Quarantine 17398 | -2/Quarantine | Found Alien Artifact 17431 | -2/Quarantine | Repaired Impulse Thruster Array+ 17435 | -2/Quarantine | Discovered new exit (range 11) 17437 | -2/Quarantine | Identified exit to Access 17484 | -2/Quarantine | Repaired Lance 17538 | -2/Quarantine | Found Alien Artifact 17540 | -2/Quarantine | Identified Subatomic Replicator 17540 | -2/Quarantine | Used Subatomic Replicator to replicate Exp. Sensor Array 17568 | -2/Quarantine | Found Alien Slashing Weapon 17574 | -2/Quarantine | Identified Sigix Broadsword 17618 | -2/Quarantine | Spotted Fortress 17633 | -2/Quarantine | Discovered new exit (range 6) 17633 | -2/Quarantine | Discovered new exit (range 6) 17634 | -2/Quarantine | Identified exit to Protoforge 17687 | -2/Quarantine | Entered Protoforge 17732 | -2/Protoforge | Build established: Wizard-Sprinter 17745 | -2/Protoforge | Repaired Lgt. Fission Core+ 17835 | -2/Protoforge | Superfortress began startup sequence 17929 | -2/Protoforge | Spotted AP7-3 17929 | -2/Protoforge | Spotted AP7-3 17931 | -2/Protoforge | Spotted Hotshot 17931 | -2/Protoforge | Spotted Hotshot 17933 | -2/Protoforge | Spotted EXE-6 17933 | -2/Protoforge | Spotted EXE-6 17934 | -2/Protoforge | Spotted Decapitator 17935 | -2/Protoforge | Spotted Decapitator 17945 | -2/Protoforge | UFD initiated attack on Protoforge (Readiness: Maximal) 17945 | -2/Protoforge | Loaded intel: 3 recycling unit locations 17951 | -2/Protoforge | Spotted EXE-6 17951 | -2/Protoforge | Spotted EXE-6 17981 | -2/Protoforge | Lost 6 parts (3n2u1w) 17981 | -2/Protoforge | Optimus greeted in Protoforge 18000 | -2/Protoforge | Found Prototype Device 18001 | -2/Protoforge | Identified Exp. Kinecellerator 18017 | -2/Protoforge | Lost 8 allies 18077 | -2/Protoforge | Spotted Decapitator 18079 | -2/Protoforge | Spotted Decapitator 18163 | -2/Protoforge | Identified Terrabomb 18163 | -2/Protoforge | Used Terrabomb 18178 | -2/Protoforge | Met 7R-MNS 18218 | -2/Protoforge | Build established: Hacker-Sprinter 18226 | -2/Protoforge | Lost 3 allies 18229 | -2/Protoforge | Found UFD Drillbomb 18244 | -2/Protoforge | Installed UFD Drillbomb at designated target 18244 | -2/Protoforge | UFD reported confirmed Drillbomb installation 18272 | -2/Protoforge | Lost 3 allies 18283 | -2/Protoforge | Found UFD Drillbomb 18304 | -2/Protoforge | Spotted B-90 Cyclops 18322 | -2/Protoforge | Installed UFD Drillbomb at designated target 18322 | -2/Protoforge | UFD reported confirmed Drillbomb installation 18354 | -2/Protoforge | Found UFD Drillbomb 18393 | -2/Protoforge | Installed UFD Drillbomb at designated target 18393 | -2/Protoforge | UFD reported confirmed Drillbomb installation 18416 | -2/Protoforge | Spotted Striker 18422 | -2/Protoforge | Found UFD Drillbomb 18427 | -2/Protoforge | Spotted Executioner 18444 | -2/Protoforge | Spotted Striker 18454 | -2/Protoforge | UFD reported confirmed Drillbomb installation 18468 | -2/Protoforge | Spotted Striker 18488 | -2/Protoforge | Spotted Hotshot 18489 | -2/Protoforge | Spotted Hotshot 18531 | -2/Protoforge | Lost 12 allies 18540 | -2/Protoforge | Spotted Executioner 18544 | -2/Protoforge | Spotted Executioner 18575 | -2/Protoforge | Spotted Striker 18623 | -2/Protoforge | Lost 6 allies 18647 | -2/Protoforge | Spotted Hotshot 18647 | -2/Protoforge | Spotted Hotshot 18648 | -2/Protoforge | Spotted Hotshot 18648 | -2/Protoforge | Spotted Hotshot 18677 | -2/Protoforge | Spotted Striker 18708 | -2/Protoforge | Lost 6 allies 18723 | -2/Protoforge | Spotted Executioner 18772 | -2/Protoforge | Lost 6 allies 18786 | -2/Protoforge | Spotted Striker 18796 | -2/Protoforge | Spotted Striker 18835 | -2/Protoforge | Lost 3 allies 18950 | -2/Protoforge | Spotted Striker 18963 | -2/Protoforge | Spotted Striker 18965 | -2/Protoforge | Spotted Striker 18966 | -2/Protoforge | Spotted Striker 18968 | -2/Protoforge | Spotted Executioner 18976 | -2/Protoforge | Spotted Overlord 19020 | -2/Protoforge | Installed UFD Drillbomb at designated target 19020 | -2/Protoforge | UFD reported confirmed Drillbomb installation 19023 | -2/Protoforge | Lost 14 allies 19034 | -2/Protoforge | Found UFD Drillbomb 19036 | -2/Protoforge | Spotted Hotshot 19051 | -2/Protoforge | Build established: Scavenger-Sprinter 19073 | -2/Protoforge | Spotted Hotshot 19074 | -2/Protoforge | Spotted Hotshot 19119 | -2/Protoforge | Spotted Striker 19124 | -2/Protoforge | Spotted Striker 19131 | -2/Protoforge | Lost 4 allies 19173 | -2/Protoforge | Lost 4 allies 19206 | -2/Protoforge | Spotted Striker 19223 | -2/Protoforge | Spotted 02F20-K 19224 | -2/Protoforge | Spotted Hotshot 19229 | -2/Protoforge | Spotted Hotshot 19239 | -2/Protoforge | Spotted Hotshot 19243 | -2/Protoforge | Spotted Hotshot 19256 | -2/Protoforge | Spotted Hotshot 19275 | -2/Protoforge | Spotted Executioner 19276 | -2/Protoforge | Spotted Executioner 19348 | -2/Protoforge | Lost 9 allies 19349 | -2/Protoforge | Spotted Executioner 19355 | -2/Protoforge | Spotted Executioner 19355 | -2/Protoforge | Spotted Executioner 19355 | -2/Protoforge | Spotted Executioner 19386 | -2/Protoforge | Spotted Executioner 19388 | -2/Protoforge | Spotted Striker 19388 | -2/Protoforge | Spotted Executioner 19474 | -2/Protoforge | Lost 7 allies 19521 | -2/Protoforge | Found UFD Drillbomb 19547 | -2/Protoforge | Spotted Striker 19549 | -2/Protoforge | Spotted Executioner 19550 | -2/Protoforge | Spotted Executioner 19560 | -2/Protoforge | Spotted Striker 19590 | -2/Protoforge | Lost 6 allies 19608 | -2/Protoforge | Spotted Striker 19608 | -2/Protoforge | Spotted Executioner 19624 | -2/Protoforge | Spotted Striker 19650 | -2/Protoforge | Spotted Striker 19675 | -2/Protoforge | Found UFD Drillbomb 19758 | -2/Protoforge | Spotted Executioner 19760 | -2/Protoforge | Lost 18 allies 19782 | -2/Protoforge | Spotted Executioner 19794 | -2/Protoforge | Spotted Executioner 19830 | -2/Protoforge | Spotted Executioner 19831 | -2/Protoforge | Spotted Striker 19841 | -2/Protoforge | Spotted Striker 19870 | -2/Protoforge | Spotted Executioner 19882 | -2/Protoforge | Lost 17 allies 19893 | -2/Protoforge | Spotted Executioner 19914 | -2/Protoforge | Spotted Striker 19957 | -2/Protoforge | Lost 8 allies 19968 | -2/Protoforge | Destroyed Executioner 19974 | -2/Protoforge | Spotted Executioner 19977 | -2/Protoforge | Destroyed Executioner 20011 | -2/Protoforge | Spotted Executioner 20014 | -2/Protoforge | Spotted Striker 20014 | -2/Protoforge | Spotted Striker 20029 | -2/Protoforge | Destroyed Striker 20039 | -2/Protoforge | P-80 Master assimilated allied Lugger 030 20043 | -2/Protoforge | P-80 Master assimilated allied 02FFU-D 20060 | -2/Protoforge | Lost 13 allies 20060 | -2/Protoforge | Spotted Executioner 20078 | -2/Protoforge | Spotted Striker 20120 | -2/Protoforge | Lost 4 allies 20124 | -2/Protoforge | Spotted Striker 20127 | -2/Protoforge | Spotted Striker 20137 | -2/Protoforge | Spotted EXE-6 20170 | -2/Protoforge | Spotted Striker 20170 | -2/Protoforge | Spotted Executioner 20240 | -2/Protoforge | Lost 5 allies 20240 | -2/Protoforge | Spotted Immortal 20242 | -2/Protoforge | Spotted Immortal 20244 | -2/Protoforge | Spotted Executioner 20298 | -2/Protoforge | Destroyed Immortal 20312 | -2/Protoforge | Spotted Executioner 20315 | -2/Protoforge | Found Prototype Piercing Weapon 20317 | -2/Protoforge | Identified Exp. Jetlance 20333 | -2/Protoforge | Spotted Hotshot 20333 | -2/Protoforge | Spotted Hotshot 20334 | -2/Protoforge | Spotted Hotshot 20334 | -2/Protoforge | Spotted Hotshot 20343 | -2/Protoforge | Spotted Striker 20370 | -2/Protoforge | Destroyed Hotshot 20372 | -2/Protoforge | Lost 8 allies 20379 | -2/Protoforge | Destroyed Hotshot 20386 | -2/Protoforge | Spotted 02F44-K 20402 | -2/Protoforge | Spotted Executioner 20449 | -2/Protoforge | Spotted Hotshot 20450 | -2/Protoforge | Spotted Hotshot 20450 | -2/Protoforge | Spotted Hotshot 20450 | -2/Protoforge | Spotted Hotshot 20466 | -2/Protoforge | Destroyed Hotshot 20469 | -2/Protoforge | P-80 Master assimilated allied 02FHV-D 20470 | -2/Protoforge | Spotted Executioner 20473 | -2/Protoforge | Spotted Executioner 20473 | -2/Protoforge | Spotted Striker 20485 | -2/Protoforge | Spotted Decapitator 20485 | -2/Protoforge | Spotted Decapitator 20502 | -2/Protoforge | Lost 8 allies 20528 | -2/Protoforge | Spotted Executioner 20536 | -2/Protoforge | Spotted Executioner 20565 | -2/Protoforge | Spotted Executioner 20579 | -2/Protoforge | Spotted Decapitator 20594 | -2/Protoforge | Spotted Executioner 20607 | -2/Protoforge | Core integrity fell below 50% 20619 | -2/Protoforge | Destroyed Decapitator 20637 | -2/Protoforge | Lost 8 allies 20657 | -2/Protoforge | Spotted Striker 20658 | -2/Protoforge | Spotted Striker 20762 | -2/Protoforge | Spotted Striker 20779 | -2/Protoforge | Destroyed Striker 20805 | -2/Protoforge | Lost 3 allies 20850 | -2/Protoforge | Spotted Hotshot 20856 | -2/Protoforge | Found UFD Drillbomb 20868 | -2/Protoforge | Discovered exit to Access (range 11) 20885 | -2/Protoforge | Installed UFD Drillbomb at designated target 20885 | -2/Protoforge | UFD reported confirmed Drillbomb installation 20891 | -2/Protoforge | Targeted by mysterious "MATRIX" hacker 20895 | -2/Protoforge | Spotted Striker 20895 | -2/Protoforge | Spotted Striker 20895 | -2/Protoforge | Spotted Executioner 20895 | -2/Protoforge | Spotted Striker 20905 | -2/Protoforge | Spotted Decapitator 20905 | -2/Protoforge | Spotted Decapitator 20905 | -2/Protoforge | Spotted Decapitator 20905 | -2/Protoforge | Spotted Decapitator 20913 | -2/Protoforge | Found UFD Drillbomb 20949 | -2/Protoforge | Spotted Striker 21001 | -2/Protoforge | Spotted Hotshot 21004 | -2/Protoforge | Spotted Hotshot 21006 | -2/Protoforge | Spotted Hotshot 21012 | -2/Protoforge | Lost 8 allies 21013 | -2/Protoforge | Spotted Striker 21026 | -2/Protoforge | Spotted Executioner 21052 | -2/Protoforge | Spotted Executioner 21056 | -2/Protoforge | Found UFD Drillbomb 21078 | -2/Protoforge | Lost 4 allies 21116 | -2/Protoforge | Destroyed Executioner 21126 | -2/Protoforge | Spotted Executioner 21131 | -2/Protoforge | Spotted Striker 21132 | -2/Protoforge | Spotted Executioner 21161 | -2/Protoforge | Spotted Executioner 21207 | -2/Protoforge | Lost 13 allies 21211 | -2/Protoforge | Spotted Striker 21226 | -2/Protoforge | Spotted Striker 21257 | -2/Protoforge | Lost 5 allies 21299 | -2/Protoforge | Installed UFD Drillbomb at designated target 21299 | -2/Protoforge | UFD reported confirmed Drillbomb installation 21349 | -2/Protoforge | Spotted Executioner 21372 | -2/Protoforge | UFD reported confirmed Drillbomb installation 21375 | -2/Protoforge | Spotted Executioner 21432 | -2/Protoforge | Spotted Striker 21432 | -2/Protoforge | Spotted Executioner 21435 | -2/Protoforge | Spotted Executioner 21441 | -2/Protoforge | Spotted Executioner 21475 | -2/Protoforge | Lost 3 allies 21508 | -2/Protoforge | Destroyed Executioner 21543 | -2/Protoforge | Spotted Striker 21545 | -2/Protoforge | Spotted Executioner 21557 | -2/Protoforge | Spotted Hotshot 21587 | -2/Protoforge | Lost 5 allies 21587 | -2/Protoforge | Destroyed Executioner 21592 | -2/Protoforge | Spotted Striker 21618 | -2/Protoforge | Spotted Executioner 21657 | -2/Protoforge | Lost 3 allies 21689 | -2/Protoforge | Spotted Hotshot 21692 | -2/Protoforge | Spotted Hotshot 21692 | -2/Protoforge | Spotted Hotshot 21695 | -2/Protoforge | Spotted Hotshot 21729 | -2/Protoforge | Spotted Striker 21742 | -2/Protoforge | Spotted Executioner 21752 | -2/Protoforge | Spotted Executioner 21765 | -2/Protoforge | Spotted Executioner 21781 | -2/Protoforge | Lost 8 allies 21785 | -2/Protoforge | Spotted Hotshot 21785 | -2/Protoforge | Spotted Hotshot 21785 | -2/Protoforge | Spotted Hotshot 21788 | -2/Protoforge | Spotted Hotshot 21806 | -2/Protoforge | Spotted Striker 21830 | -2/Protoforge | Destroyed Hotshot 21841 | -2/Protoforge | Destroyed Hotshot 21844 | -2/Protoforge | Destroyed Hotshot 21864 | -2/Protoforge | Spotted Striker 21865 | -2/Protoforge | Spotted Striker 21885 | -2/Protoforge | P-80 Master assimilated allied Lugger 859 21906 | -2/Protoforge | Spotted Striker 21910 | -2/Protoforge | Spotted Striker 21924 | -2/Protoforge | Lost 4 allies 21969 | -2/Protoforge | Destroyed Decapitator 21981 | -2/Protoforge | Lost 5 allies 22005 | -2/Protoforge | Spotted Executioner 22007 | -2/Protoforge | Spotted Striker 22024 | -2/Protoforge | Spotted Executioner 22031 | -2/Protoforge | Spotted Executioner 22057 | -2/Protoforge | Destroyed Executioner 22080 | -2/Protoforge | P-80 Master assimilated allied 02FPC-D 22122 | -2/Protoforge | Lost 13 allies 22171 | -2/Protoforge | Spotted Executioner 22179 | -2/Protoforge | Destroyed Executioner 22219 | -2/Protoforge | Lost 8 allies 22242 | -2/Protoforge | Spotted Executioner 22263 | -2/Protoforge | Spotted Executioner 22339 | -2/Protoforge | Spotted Executioner 22340 | -2/Protoforge | Spotted Executioner 22383 | -2/Protoforge | Lost 17 allies 22441 | -2/Protoforge | Spotted Executioner 22458 | -2/Protoforge | Fabricated Adv. Hacking Suite? 22461 | -2/Protoforge | Fabricated Adv. Hacking Suite? 22469 | -2/Protoforge | Spotted Executioner 22515 | -2/Protoforge | Lost 8 allies 22526 | -2/Protoforge | Spotted Executioner 22533 | -2/Protoforge | Spotted Striker 22542 | -2/Protoforge | Spotted Striker 22546 | -2/Protoforge | Spotted Striker 22552 | -2/Protoforge | P-80 Master assimilated allied 02F80-K 22554 | -2/Protoforge | Spotted 02F80-K 22570 | -2/Protoforge | Found Prototype Device 22571 | -2/Protoforge | Identified Adv. Kinecellerator 22622 | -2/Protoforge | Spotted Executioner 22626 | -2/Protoforge | Spotted Executioner 22632 | -2/Protoforge | Spotted Striker 22637 | -2/Protoforge | Lost 7 allies 22655 | -2/Protoforge | Spotted Striker 22672 | -2/Protoforge | Spotted Striker 22684 | -2/Protoforge | Spotted Executioner 22686 | -2/Protoforge | Destroyed Striker 22735 | -2/Protoforge | Spotted Hotshot 22739 | -2/Protoforge | Spotted Hotshot 22739 | -2/Protoforge | Spotted Hotshot 22747 | -2/Protoforge | Spotted Hotshot 22768 | -2/Protoforge | Lost 19 allies 22778 | -2/Protoforge | Spotted Striker 22829 | -2/Protoforge | Spotted Executioner 22833 | -2/Protoforge | Destroyed Executioner 22838 | -2/Protoforge | Spotted Striker 22842 | -2/Protoforge | Spotted Striker 22862 | -2/Protoforge | Lost 10 allies 22876 | -2/Protoforge | Spotted Executioner 22880 | -2/Protoforge | Spotted Striker 22895 | -2/Protoforge | Found UFD Drillbomb 22906 | -2/Protoforge | Spotted Striker 22914 | -2/Protoforge | Spotted Striker 22916 | -2/Protoforge | Lost 3 allies 22928 | -2/Protoforge | Spotted Executioner 23044 | -2/Protoforge | Spotted Executioner 23050 | -2/Protoforge | Spotted Executioner 23057 | -2/Protoforge | Spotted Striker 23062 | -2/Protoforge | Spotted Executioner 23068 | -2/Protoforge | Destroyed Striker 23108 | -2/Protoforge | Lost 26 allies 23137 | -2/Protoforge | Spotted Striker 23138 | -2/Protoforge | Spotted Striker 23177 | -2/Protoforge | P-80 Master assimilated allied YR-5QC(E) 23180 | -2/Protoforge | P-80 Master assimilated allied RU-LFA(E) 23224 | -2/Protoforge | Spotted Striker 23226 | -2/Protoforge | Lost 4 allies 23255 | -2/Protoforge | Spotted Executioner 23314 | -2/Protoforge | Spotted Executioner 23357 | -2/Protoforge | Spotted Striker 23373 | -2/Protoforge | Lost 11 allies 23403 | -2/Protoforge | Spotted Striker 23403 | -2/Protoforge | Spotted Hotshot 23405 | -2/Protoforge | Spotted Striker 23409 | -2/Protoforge | Spotted Executioner 23416 | -2/Protoforge | Spotted Striker 23416 | -2/Protoforge | Spotted Striker 23488 | -2/Protoforge | P-80 Master assimilated allied 02FVW-D 23488 | -2/Protoforge | P-80 Master assimilated allied 02FVV-D 23495 | -2/Protoforge | Spotted Executioner 23613 | -2/Protoforge | Lost 25 allies 23645 | -2/Protoforge | Spotted Executioner 23656 | -2/Protoforge | Spotted Striker 23675 | -2/Protoforge | Fabricated Adv. Hacking Suite? 23676 | -2/Protoforge | Spotted Striker 23677 | -2/Protoforge | Spotted Striker 23697 | -2/Protoforge | Spotted Executioner 23728 | -2/Protoforge | Spotted Executioner 23744 | -2/Protoforge | Spotted Striker 23746 | -2/Protoforge | Spotted Striker 23788 | -2/Protoforge | Lost 13 allies 23815 | -2/Protoforge | Spotted Executioner 23820 | -2/Protoforge | Spotted Executioner 23830 | -2/Protoforge | Spotted Striker 23839 | -2/Protoforge | Spotted Striker 23849 | -2/Protoforge | Spotted Hotshot 23849 | -2/Protoforge | Spotted Hotshot 23850 | -2/Protoforge | Spotted Hotshot 23862 | -2/Protoforge | Destroyed Hotshot 23872 | -2/Protoforge | Spotted Hotshot 23872 | -2/Protoforge | Spotted Hotshot 23873 | -2/Protoforge | Spotted Hotshot 23912 | -2/Protoforge | Found UFD Drillbomb 23926 | -2/Protoforge | Spotted Striker 23927 | -2/Protoforge | Spotted Executioner 23927 | -2/Protoforge | Spotted Striker 23930 | -2/Protoforge | Spotted Executioner 23936 | -2/Protoforge | Spotted Executioner 23960 | -2/Protoforge | Spotted Striker 23967 | -2/Protoforge | Destroyed Striker 23988 | -2/Protoforge | Core integrity fell below 20% 23995 | -2/Protoforge | Destroyed Executioner 24010 | -2/Protoforge | Spotted Striker 24023 | -2/Protoforge | Spotted Striker 24033 | -2/Protoforge | Spotted Striker 24036 | -2/Protoforge | Spotted Striker 24042 | -2/Protoforge | Lost 15 allies 24080 | -2/Protoforge | Lost 3 allies 24082 | -2/Protoforge | Installed UFD Drillbomb at designated target 24082 | -2/Protoforge | UFD reported confirmed Drillbomb installation 24095 | -2/Protoforge | Spotted Striker 24095 | -2/Protoforge | Spotted Striker 24095 | -2/Protoforge | Spotted Executioner 24095 | -2/Protoforge | Spotted Striker 24102 | -2/Protoforge | Spotted Hotshot 24142 | -2/Protoforge | Spotted Striker 24149 | -2/Protoforge | Spotted Striker 24186 | -2/Protoforge | Lost 15 allies 24277 | -2/Protoforge | Lost 6 allies 24311 | -2/Protoforge | Spotted Hotshot 24311 | -2/Protoforge | Spotted Hotshot 24318 | -2/Protoforge | Spotted Hotshot 24330 | -2/Protoforge | Spotted Executioner 24332 | -2/Protoforge | Spotted Executioner 24332 | -2/Protoforge | Spotted Striker 24333 | -2/Protoforge | Spotted Striker 24335 | -2/Protoforge | Spotted Hotshot 24336 | -2/Protoforge | Spotted Hotshot 24354 | -2/Protoforge | Spotted Hotshot 24403 | -2/Protoforge | Destroyed Executioner 24418 | -2/Protoforge | Lost 16 allies 24435 | -2/Protoforge | Spotted Hotshot 24446 | -2/Protoforge | Installed UFD Drillbomb at designated target 24446 | -2/Protoforge | UFD reported confirmed Drillbomb installation 24447 | -2/Protoforge | UFD began Drillbomb countdown 24447 | -2/Protoforge | Entered Access 24447 | -1/Access | Evolved 2 slots: Utility x2 24523 | -1/Access | Discovered new exit (range 8) 24524 | -1/Access | Identified exit to Command 24545 | -1/Access | Assembled infested ambush trap array 24697 | -1/Access | First assault squad dispatched 24698 | -1/Access | Entered Command 24704 | -1/Command | Identified exit to Surface 24724 | -1/Command | Spotted Executioner 24727 | -1/Command | Spotted Executioner 24755 | -1/Command | Spotted Alpha 7 24755 | -1/Command | Spotted Striker 24755 | -1/Command | Spotted Executioner 24755 | -1/Command | Spotted Executioner 24755 | -1/Command | Spotted Alpha 7 24755 | -1/Command | Spotted Striker 24755 | -1/Command | Spotted Executioner 24755 | -1/Command | Spotted Executioner 24758 | -1/Command | Spotted B-99 Colossus 24764 | -1/Command | Spotted B-99 Colossus 24774 | *** | Escaped! Last Messages --------------- 24772_ Knocked back. 24772_ Penetrated by Slug. 24772_ Exp. Surge Thruster destroyed. 24772_ Slug penetrates Wall. 24772_ Penetrated by Slug. 24772_ Slug penetrates Wall. 24773_ Wall collapses. 24773_ Mic. Antimatter Reactor+ destroyed. 24773_ Slug penetrates Wall. 24773_ Slug penetrates Reinforced Barrier. 24773_ Penetrated by Slug. 24773_ Impulse Thruster Array+ destroyed. 24773_ Slug penetrates Wall. 24773_ Penetrated by Slug. 24773_ Slug penetrates Wall. 24773_ Field strength at 1. 24774_ Penetrated by Slug. 24774_ Slug penetrates Wall. 24774_ Stasis field depleted. [Achievement: Unfinished Business] Map ----- +----------------------------------------------------+ | ???????""" """ # ]! #??? | | ???????"T """ # ]= #??? | | ????????"" + != #??? | | ????????"" # #??? | | ?????????# + #??? | | ?????????# # #??? | | ?????????????########## % ######### # #??? | | ??????????????????????# ;#??????# # #??? | | ?????????????????????##++++;##?????# # #??? | | ?????????????????????#^ ^ ;#?????# # #??? | | ????????????????????##^ ^p ;#?????# # #??? | | ????????????????????# % K #?????# # #??? | | ????????????????????## 7E ##?????# # #??? | | ????????????????????# E7E p #?????# # #??? | | ????????????????????## ^^^ %##?????# ##+#######??? | | ????????????????????# ^ #?????# #? #??? | | ????????????????????## ;;?????# #? #??? | | ????????????????????# ^ #?????# +? #??? | | ??????????????????####BB E;###???# #? [#??? | | ??????????????????# BB BB%#???# #? #??? | | ??????????????????# BB%#???# #? #??? | | ??????????????????# ^ #???# #? #??? | | ??????????????????# K ^ #???# ### ###??? | | ??????????????????# #???# ## #??? | | ??????????????????# ^ "" % #???# # #??? | | ??????????????????# "@ #???# #??? | | ??????????????????# ^ #???# # #### | | ??????????????????# ;#??# == # | | ??????????????????# ##??# == = # | | ?????????????????#; #???# = = | | ?????????????????## #???# # | | ??????????????????##########;###???# # # | | ????????????????????????????##?????# ##+######/## | | ???????????????????????????????????# # # ## | | ???????????????????????????????????# # + | | ??????????????????????????????????? + !! # ## | | ???????????????????????????????????[ ????? #####? | | ?????????????????????????????????? ????? #????? | | ?????????????????????????????????? ?????###????? | | ?????????????????????????????????? ????????????? | | ????????????????????????????????? ?????????????? | | ????????????????????????????????? ?????????????? | | ????????????????????????????????? ?????????????? | | ???????????????????????????????? ?????????????? | | ????????????????????????????????/ ??????????????? | | ?????????????????????????????????? ??????????????? | | ?????????????????????????????????????????????????? | | ?????????????????????????????????????????????????? | | ?????????????????????????????????????????????????? | | ?????????????????????????????????????????????????? | +----------------------------------------------------+ Best States ------------- Heat Dissipation 75 Energy Generation 35 Energy Capacity 265 Matter Stores 300 Matter Capacity 300 Sight Range 23 Robot Scan Range 20 Terrain Scan Density 10 ECM Strength 1 Jamming Range 16 Additional Mass Support 9 Armor Coverage 375 Propulsion Shielding 90 Utility Shielding 66 Evasion (%) 79 Recoil Reduction 4 Offensive Hacking 66 Defensive Hacking 12 Item Schematics ----------------- Hcp. Storage Unit | -10/Materials | Hacked ECM Suite | -10/Materials | Hacked Lrg. Storage Unit | -10/Materials | Hacked Hvy. Hammer | -9/Materials | Scanalyzed VTOL Module | -9/Materials | Scanalyzed Hacking Suite | -8/Materials | Hacked Imp. Light Armor Plating | -8/Materials | Hacked Imp. VTOL Module | -8/Materials | Scanalyzed Lgt. Deuterium Engine | -8/Materials | Scanalyzed Imp. Signal Interpreter | -8/Materials | Scanalyzed Katana | -8/Materials | Scanalyzed Imp. Sensor Array | -8/Materials | Scanalyzed Adv. Hacking Suite | -4/Factory | Hacked Nuclear Pulse Array | -4/Factory | Hacked Robot Schematics ------------------ None Fabricated ------------ Adv. Hacking Suite | x1 | -2/Protoforge Adv. Hacking Suite | x1 | -2/Protoforge Adv. Hacking Suite | x1 | -2/Protoforge Repaired ---------- Assault Rifle | 19% | -10/Materials Lgt. Deuterium Engine | 99% | -8/Materials | Broken Exp. Sensor Array | 62% | -4/Factory Lgt. Deuterium Engine | 32% | -4/Factory Imp. Light Armor Plating | 72% | -4/Factory Nuclear Pulse Array | 71% | -4/Factory Nuclear Pulse Array | 60% | -4/Factory Impulse Thruster Array | 64% | -2/Quarantine Lance | 46% | -2/Quarantine Lgt. Fission Core | 63% | -2/Protoforge Studied --------- Flight Unit | -9/Materials | Hacked VTOL Module | -9/Materials | Hacked Lgt. Deuterium Engine | -7/Factory | Hacked Lgt. Nuclear Core | -7/Factory | Hacked Nuclear Pulse Array | -4/Factory | Hacked Impulse Thruster Array | -2/Research | Hacked Mic. Fission Core | -2/Research | Hacked Lgt. Fission Core | -2/Research | Hacked Mic. Antimatter Reactor | -2/Research | Hacked Field Propulsion Drive | -2/Research | Hacked Alien Tech Used ----------------- Subatomic Replicator Sigix Broadsword Terrabomb Achievements -------------- Please No, Not That Sniper Unfinished Business Wheee! Challenges ------------ None Game ------ Seed HugeLauncherShield Manual? 0 Play Time 12:45:34 Cumulative 383.3 hours Start 2026.08.02 @ 21:59:17 End 2026.08.04 @ 04:20:35 Sessions 3 Manual Loads 0 Difficulty Rogue Special Mode None Game No. 126 Rogue 126 Adventurer 0 Explorer 0 Win Type 0 Total 17 Types 12/1/1/0/1/0/0/0/0/2 Lore% 62 Gallery% 52 Achievement% 51 Wizard Run 0 Options --------- Layout 0 ASCII 0 Keyboard 0 Movement Numpad Keybinds 0 Fullscreen 1 Font 20/SmallcapsGlow Map View 90x57 Zoom Use 0% Tactical HUD 1 Map Filters NONE Filters BRIGHTNESS(200) Steam 1 RUN: 39781ef1-a39c-442a-a2e8-aa70d61bfcd8